bitfinex/quotes_ETHUSD_20230110
["timestamp","ask_amount","ask_price","bid_price","bid_amount"]
[1673371663526,2.29115677,1331.1,1330.8,17.12775761]
[1673371663744,4.79115677,1331.1,1330.8,17.12775761]
[1673371664111,9.80376677,1331.1,1330.8,17.12775761]
[1673371667097,9.80376677,1331.1,1330.8,9.61354761]
[1673371667683,22.13277556,1331.1,1330.8,9.61354761]
[1673371668054,20.13277556,1331.1,1330.8,7.9738842]
[1673371670778,2.25311747,1331.0,1330.8,7.9738842]
[1673371670968,17.87965809,1331.1,1330.8,7.9738842]
[1673371670969,27.71183556,1331.1,1330.8,7.9738842]
[1673371671193,12.62016556,1331.1,1330.8,7.9738842]
[1673371672436,5.10755556,1331.1,1330.8,15.4880742]
[1673371673254,5.10755556,1331.1,1330.8,23.0023442]
[1673371675658,5.10755556,1331.1,1330.8,26.5020373]
[1673371676083,5.10755556,1331.1,1330.8,18.9877673]
[1673371676084,2.25311747,1331.0,1330.8,18.9877673]
[1673371676454,2.25311747,1331.0,1330.8,15.4880742]
[1673371676662,2.25311747,1331.0,1330.8,0.099]
[1673371676982,2.25311747,1331.0,1330.7,12.09358683]
[1673371677152,2.25311747,1331.0,1330.8,1.86458205]
[1673371677374,12.68633556,1331.1,1330.8,1.86458205]
[1673371677555,16.72882804,1331.1,1330.8,1.86458205]
[1673371677763,2.25311747,1331.0,1330.8,1.86458205]
[1673371678239,12.68633556,1331.1,1330.8,1.86458205]
[1673371678428,12.62033556,1331.1,1330.8,1.86458205]
[1673371678855,5.10755556,1331.1,1330.8,9.37872205]
[1673371679184,5.10755556,1331.1,1330.8,7.61314]
[1673371679799,2.25311747,1331.0,1330.8,7.61314]
[1673371680017,2.25511747,1331.0,1330.8,7.61014]
[1673371680183,2.25311747,1331.0,1330.8,7.61314]
[1673371681191,2.25311747,1331.0,1330.8,0.099]
[1673371681372,2.25311747,1331.0,1330.7,19.60842683]
[1673371681550,2.25311747,1331.0,1330.8,1.86458105]
[1673371682650,9.76636747,1331.0,1330.8,1.86458105]
[1673371683231,2.25311747,1331.0,1330.8,1.86458105]
[1673371684545,2.25311747,1331.0,1330.7,2.89583393]
[1673371684546,27.60905626,1331.0,1330.7,2.89583393]
[1673371684709,27.60905626,1331.0,1330.6,25.15208077]
[1673371684906,27.60905626,1331.0,1330.7,1.86468966]
[1673371685121,9.76684747,1330.9,1330.7,1.86468966]
[1673371685331,2.25311747,1330.9,1330.7,1.86468966]
[1673371685962,9.76682747,1330.9,1330.7,1.86468966]
[1673371686248,2.25311747,1330.9,1330.7,1.86468966]
[1673371686418,5.0206581,1330.9,1330.6,21.78013853]
[1673371686627,32.62640689,1330.9,1330.6,0.8424046]
[1673371686837,32.62640689,1330.9,1330.6,0.7434046]
[1673371687455,25.11218689,1330.9,1330.6,0.7434046]
[1673371688434,22.2957881,1330.9,1330.6,0.7434046]
[1673371690544,14.7815681,1330.9,1330.6,0.7434046]
[1673371690852,14.7815681,1330.9,1330.6,8.2587646]
[1673371691025,14.7815681,1330.9,1330.6,8.3577646]
[1673371691999,14.7815681,1330.9,1330.6,0.8424046]
[1673371692224,12.52845063,1330.9,1330.6,0.7434046]
[1673371693424,20.04267063,1330.9,1330.6,0.7434046]
[1673371693634,22.2957881,1330.9,1330.6,0.7434046]
[1673371694264,12.52845063,1330.9,1330.6,0.7434046]
[1673371694621,3.31574063,1330.9,1330.6,8.2587646]
[1673371694824,3.31574063,1330.9,1330.6,8.3577646]
[1673371698975,3.31574063,1330.9,1330.7,8.82347876]
[1673371699124,3.31574063,1330.9,1330.7,0.099]
[1673371699335,3.31574063,1330.9,1330.6,15.8731246]
[1673371699544,3.31574063,1330.9,1330.6,8.3577646]
[1673371700521,10.82947063,1330.9,1330.6,8.3577646]
[1673371700856,3.31574063,1330.9,1330.6,8.3577646]
[1673371703329,5.5688581,1330.9,1330.6,8.3577646]
[1673371704710,13.0826681,1330.9,1330.6,0.8424046]
[1673371704942,13.0826681,1330.9,1330.6,0.7434046]
[1673371705693,15.89906689,1330.9,1330.6,0.7434046]
[1673371707349,23.41287689,1330.9,1330.6,0.7434046]
[1673371707635,30.92668689,1330.9,1330.6,0.73952832]
[1673371709373,30.92868689,1330.9,1330.6,0.73952832]
[1673371709525,30.92668689,1330.9,1330.6,0.73952832]
[1673371710414,32.62168689,1330.9,1330.6,0.73952832]
[1673371711222,29.8052881,1330.9,1330.6,0.73952832]
[1673371712782,29.8072881,1330.9,1330.6,0.73952832]
[1673371712992,29.8052881,1330.9,1330.6,0.73952832]
[1673371716988,32.62168689,1330.9,1330.6,0.73952832]
[1673371718187,2.25311747,1330.8,1330.6,0.73952832]
[1673371718350,7.51484,1330.7,1330.6,0.73952832]
[1673371718890,18.35724869,1330.8,1330.7,1.11893492]
[1673371719091,20.54436616,1330.8,1330.7,1.11893492]
[1673371719447,18.29124869,1330.8,1330.7,1.11893492]
[1673371719874,28.05905616,1330.8,1330.7,1.11893492]
[1673371721300,28.85233748,1330.8,1330.7,1.11893492]
[1673371721536,36.58988013,1330.8,1330.7,1.11893492]
[1673371721751,36.77459933,1330.8,1330.7,1.11893492]
[1673371722352,39.58875565,1330.8,1330.7,1.11893492]
[1673371723350,40.14644857,1330.8,1330.7,1.11893492]
[1673371723520,36.77459933,1330.8,1330.7,1.11893492]
[1673371724608,39.5885522,1330.8,1330.7,1.11893492]
[1673371725870,41.83958852,1330.8,1330.7,1.11893492]
[1673371726496,39.02563565,1330.8,1330.7,1.11893492]
[1673371727602,41.83958852,1330.8,1330.7,1.11893492]
[1673371727850,39.02563565,1330.8,1330.7,1.11893492]
[1673371729546,31.51094565,1330.8,1330.7,1.11893492]
[1673371730065,39.02563565,1330.8,1330.7,1.11893492]
[1673371730273,31.51094565,1330.8,1330.7,1.11893492]
[1673371731735,17.56677695,1330.9,1330.7,1.11893492]
[1673371731924,22.80037919,1330.9,1330.7,1.11893492]
[1673371732135,19.98642632,1330.9,1330.7,1.11893492]
[1673371733011,0.23,1330.8,1330.7,1.11893492]
[1673371734049,0.7937,1330.8,1330.7,1.11893492]
[1673371734238,0.23,1330.8,1330.7,1.11893492]
[1673371734906,12.53853632,1330.9,1330.7,1.11893492]
[1673371735124,12.47253632,1330.9,1330.7,1.11893492]
[1673371741787,19.98624632,1330.9,1330.7,1.11893492]
[1673371744046,12.47253632,1330.9,1330.7,1.11893492]
[1673371745579,15.28648919,1330.9,1330.7,1.11893492]
[1673371747723,12.47253632,1330.9,1330.7,8.63375492]
[1673371747957,12.47253632,1330.9,1330.7,16.24757492]
[1673371748718,12.47253632,1330.9,1330.7,8.73275492]
[1673371748983,10.2215,1330.9,1330.7,8.73275492]
[1673371749194,12.47253632,1330.9,1330.7,1.21793492]
[1673371749359,12.47253632,1330.9,1330.7,1.11893492]
[1673371749564,2.25103632,1330.9,1330.7,10.33234724]
[1673371749773,2.25103632,1330.9,1330.7,10.43134724]
[1673371752204,2.25103632,1330.9,1330.7,2.91669724]
[1673371752418,2.25103632,1330.9,1330.7,2.81769724]
[1673371752630,2.25103632,1330.9,1330.7,10.33244724]
[1673371752877,2.25103632,1330.9,1330.7,10.43144724]
[1673371753108,2.25103632,1330.9,1330.7,2.91669724]
[1673371753243,2.25103632,1330.9,1330.7,2.81769724]
[1673371753608,2.25103632,1330.9,1330.7,10.33240724]
[1673371753925,2.25103632,1330.9,1330.7,17.94624724]
[1673371754351,10.39058919,1331.0,1330.7,25.46108724]
[1673371754661,10.32458919,1331.0,1330.7,25.46108724]
[1673371754866,9.76098919,1331.0,1330.7,25.46108724]
[1673371756337,2.25103632,1330.9,1330.7,17.94624724]
[1673371756807,2.25103632,1330.9,1330.7,10.43140724]
[1673371757226,2.25103632,1330.9,1330.7,17.94624724]
[1673371757442,4.74789605,1330.9,1330.7,10.43140724]
[1673371757701,4.74789605,1330.9,1330.7,17.94624724]
[1673371758227,4.74789605,1330.9,1330.7,10.43140724]
[1673371758392,4.74789605,1330.9,1330.7,17.94624724]
[1673371758603,2.24789605,1330.9,1330.7,17.94624724]
[1673371759605,2.24789605,1330.9,1330.7,25.46108724]
[1673371763490,2.24789605,1330.9,1330.7,2.91669724]
[1673371763701,2.24789605,1330.9,1330.7,17.84737724]
[1673371763945,2.24789605,1330.9,1330.7,25.46121724]
[1673371766946,2.24789605,1330.9,1330.7,2.91669724]
[1673371767148,2.24789605,1330.9,1330.7,2.81769724]
[1673371767517,15.02854,1330.8,1330.7,1.11893492]
[1673371767838,7.51427,1330.8,1330.7,1.11893492]
[1673371768145,21.77838892,1330.8,1330.7,1.11893492]
[1673371768360,22.00838892,1330.8,1330.7,1.11893492]
[1673371769413,14.49411892,1330.8,1330.7,1.11893492]
[1673371769566,16.75787681,1330.8,1330.7,1.11893492]
[1673371769774,13.94392394,1330.8,1330.7,1.11893492]
[1673371770037,16.75787681,1330.8,1330.7,1.11893492]
[1673371770250,13.94392394,1330.8,1330.7,1.11893492]
[1673371773997,6.42965394,1330.8,1330.7,1.11893492]
[1673371776506,4.16589605,1330.8,1330.7,1.11893492]
[1673371776823,1.918,1330.8,1330.7,1.11893492]
[1673371777347,4.16589605,1330.8,1330.7,1.11893492]
[1673371777817,1.918,1330.8,1330.7,1.11893492]
[1673371779585,4.16589605,1330.8,1330.7,1.11893492]
[1673371780628,1.918,1330.8,1330.7,1.11893492]
[1673371781453,1.688,1330.8,1330.7,1.11893492]
[1673371781790,1.688,1330.8,1330.7,8.63377492]
[1673371782008,1.688,1330.8,1330.7,1.21793492]
[1673371782227,1.688,1330.8,1330.7,1.11549923]
[1673371783977,1.688,1330.8,1330.7,8.63033923]
[1673371784171,1.688,1330.8,1330.7,1.21449923]
[1673371784383,1.688,1330.8,1330.7,1.11549923]
[1673371784589,1.688,1330.8,1330.6,8.35365832]
[1673371784849,1.688,1330.8,1330.6,15.86869832]
[1673371785062,1.688,1330.8,1330.6,19.45387562]
[1673371785241,1.688,1330.8,1330.6,20.57332852]
[1673371786120,1.688,1330.8,1330.6,19.45387562]
[1673371786285,1.688,1330.8,1330.6,20.57332852]
[1673371786720,1.688,1330.8,1330.6,13.05819852]
[1673371786938,1.688,1330.8,1330.6,19.45414562]
[1673371787587,1.688,1330.8,1330.6,11.93874562]
[1673371787960,1.688,1330.8,1330.6,4.42370562]
[1673371788169,1.688,1330.8,1330.6,4.32470562]
[1673371788423,1.688,1330.8,1330.6,20.47482852]
[1673371788647,1.688,1330.8,1330.6,20.57382852]
[1673371789111,1.688,1330.8,1330.6,19.45437562]
[1673371790210,6.82184892,1330.9,1330.6,22.25156501]
[1673371790422,6.82184892,1330.9,1330.6,26.96977562]
[1673371790423,6.75584892,1330.9,1330.6,26.96977562]
[1673371790601,6.75584892,1330.9,1330.6,29.76696501]
[1673371791165,6.75584892,1330.9,1330.6,23.37101791]
[1673371791325,6.75584892,1330.9,1330.6,20.57382852]
[1673371791540,6.75584892,1330.9,1330.6,19.45437562]
[1673371792060,6.75584892,1330.9,1330.6,28.08922852]
[1673371792312,6.75584892,1330.9,1330.6,22.25156501]
[1673371792529,3.94189605,1330.9,1330.7,1.86474343]
[1673371792950,3.94189605,1330.9,1330.7,9.37935343]
[1673371793124,3.94189605,1330.9,1330.7,22.64329]
[1673371793482,3.94189605,1330.9,1330.7,15.12845]
[1673371794280,3.94189605,1330.9,1330.7,7.61361]
[1673371794488,2.24789605,1330.9,1330.7,7.61361]
[1673371794704,2.24789605,1330.9,1330.7,17.46544379]
[1673371795155,28.68304892,1331.0,1330.7,17.46544379]
[1673371795372,28.61704892,1331.0,1330.7,17.46544379]
[1673371795527,26.35844892,1331.0,1330.7,21.21107845]
[1673371795738,23.54449605,1331.0,1330.7,22.33053135]
[1673371795996,23.54449605,1331.0,1330.7,29.84537135]
[1673371796214,8.06184892,1331.0,1330.7,24.00826784]
[1673371796844,3.0,1331.0,1330.8,1.86454105]
[1673371797158,15.12784892,1331.1,1330.9,22.54113]
[1673371797159,2.31389605,1331.1,1330.9,22.54113]
[1673371797382,2.24789605,1331.1,1330.9,22.64013]
[1673371797519,2.24789605,1331.1,1330.9,7.61271]
[1673371798050,2.24789605,1331.1,1330.9,15.12642]
[1673371798304,2.24789605,1331.1,1330.9,18.01522996]
[1673371798992,2.24789605,1331.1,1330.9,25.52893996]
[1673371799207,24.28324892,1331.2,1330.9,25.52893996]
[1673371799414,24.21724892,1331.2,1330.9,25.52893996]
[1673371800410,2.24789605,1331.1,1330.9,18.01522996]
[1673371800620,2.24789605,1331.1,1330.9,2.98780996]
[1673371800868,2.24789605,1331.1,1330.9,2.88880996]
[1673371801670,2.24789605,1331.1,1330.9,10.40240996]
[1673371801894,2.24789605,1331.1,1330.9,10.50140996]
[1673371802983,20.08766892,1331.1,1330.9,0.099]
[1673371803197,2.24789605,1331.1,1330.8,8.3683]
[1673371803449,9.76052605,1331.1,1330.8,8.3683]
[1673371804038,17.27315605,1331.1,1330.8,8.3683]
[1673371804689,20.08710892,1331.1,1330.8,8.3683]
[1673371805130,17.27315605,1331.1,1330.8,8.3683]
[1673371806348,24.78578605,1331.1,1330.8,8.3683]
[1673371806610,17.27315605,1331.1,1330.8,8.3683]
[1673371808274,14.68612684,1331.1,1330.8,8.3683]
[1673371810552,17.50007971,1331.1,1330.8,8.3683]
[1673371810781,14.68612684,1331.1,1330.8,8.3683]
[1673371811012,9.76052605,1331.1,1330.8,8.3683]
[1673371811497,12.57447892,1331.1,1330.8,8.3683]
[1673371811756,2.24789605,1331.0,1330.8,8.3683]
[1673371811918,22.54113,1330.9,1330.8,0.099]
[1673371812131,17.67592261,1330.9,1330.6,8.70522832]
[1673371812370,27.18984605,1331.0,1330.6,16.31956832]
[1673371812590,27.18984605,1331.0,1330.6,17.43902122]
[1673371812591,27.12384605,1331.0,1330.6,17.43902122]
[1673371812774,27.12384605,1331.0,1330.7,1.86465092]
[1673371813653,29.93779892,1331.0,1330.6,19.11659856]
[1673371813820,34.63746605,1331.0,1330.6,11.60125856]
[1673371814173,34.63746605,1331.0,1330.6,8.80422832]
[1673371814174,38.38920794,1331.0,1330.6,8.80422832]
[1673371814384,30.87558794,1331.0,1330.6,12.42368122]
[1673371814544,30.87558794,1331.0,1330.6,19.93900122]
[1673371814756,30.87558794,1331.0,1330.6,20.23603146]
[1673371815193,30.87558794,1331.0,1330.7,1.86466255]
[1673371815505,30.87558794,1331.0,1330.6,20.23603146]
[1673371815939,30.87558794,1331.0,1330.6,21.36531678]
[1673371816589,30.87558794,1331.0,1330.7,4.36466395]
[1673371816756,30.87558794,1331.0,1330.6,20.23603146]
[1673371816960,30.87558794,1331.0,1330.7,1.86466362]
[1673371817821,41.20316081,1331.0,1330.6,11.60125856]
[1673371818163,41.20316081,1331.0,1330.6,8.80422832]
[1673371818383,38.38920794,1331.0,1330.6,16.31961832]
[1673371818539,41.20316081,1331.0,1330.6,19.11664856]
[1673371818902,0.23,1330.9,1330.6,11.60125856]
[1673371819115,15.02854,1330.8,1330.6,8.80422832]
[1673371819272,16.35645822,1330.8,1330.6,0.83852832]
[1673371819482,13.90970122,1330.8,1330.6,0.73952832]
[1673371819958,21.42397122,1330.8,1330.6,0.73952832]
[1673371820164,23.12097122,1330.8,1330.6,0.73952832]
[1673371820379,15.60670122,1330.8,1330.6,0.73952832]
[1673371824786,10.07244,1330.9,1330.6,0.73952832]
[1673371825002,10.00644,1330.9,1330.6,0.73952832]
[1673371826582,2.4927,1330.9,1330.6,0.73952832]
[1673371826903,4.699,1330.9,1330.6,23.28545832]
[1673371827049,5.2587,1330.9,1330.6,23.38445832]
[1673371827269,5.2587,1330.9,1330.6,26.87757071]
[1673371828012,7.50659605,1330.9,1330.6,26.87757071]
[1673371828220,5.2587,1330.9,1330.6,26.87757071]
[1673371828479,7.50659605,1330.9,1330.6,26.87757071]
[1673371828855,6.94689605,1330.9,1330.6,26.87757071]
[1673371830131,5.24789605,1330.9,1330.6,26.87757071]
[1673371831121,3.0,1330.9,1330.6,26.87757071]
[1673371832580,5.24789605,1330.9,1330.6,26.87757071]
[1673371832895,3.0,1330.9,1330.6,26.87757071]
[1673371833275,3.0,1330.9,1330.7,0.17185856]
[1673371833490,3.0,1330.9,1330.7,15.20143856]
[1673371833697,3.0,1330.9,1330.7,18.00525949]
[1673371833914,3.002,1330.9,1330.7,18.00225949]
[1673371834218,3.002,1330.9,1330.7,18.00525949]
[1673371834219,3.0,1330.9,1330.7,18.00525949]
[1673371838412,3.0,1330.9,1330.7,0.27085856]
[1673371838668,5.24789605,1330.9,1330.7,0.17185856]
[1673371838828,6.94189605,1330.9,1330.7,0.17185856]
[1673371839045,3.94689605,1330.8,1330.7,0.17185856]
[1673371839258,26.71970605,1330.8,1330.7,0.17185856]
[1673371839581,26.71970605,1330.8,1330.7,0.16835151]
[1673371839582,30.78741294,1330.8,1330.7,0.16835151]
[1673371840235,32.48641294,1330.8,1330.7,0.16835151]
[1673371840656,30.23851689,1330.8,1330.7,0.16835151]
[1673371840985,32.48641294,1330.8,1330.7,0.16835151]
[1673371841824,32.25641294,1330.8,1330.7,0.16835151]
[1673371842199,24.74214294,1330.8,1330.7,0.16835151]
[1673371842446,17.22787294,1330.8,1330.7,0.16835151]
[1673371842914,9.71360294,1330.8,1330.7,0.16835151]
[1673371843092,3.4,1330.8,1330.7,0.16835151]
[1673371843301,3.398,1330.8,1330.7,0.16835151]
[1673371844695,5.64589605,1330.8,1330.7,0.16835151]
[1673371844904,5.64789605,1330.8,1330.7,0.16835151]
[1673371845129,20.67643605,1330.8,1330.7,0.16835151]
[1673371845284,31.23265892,1330.8,1330.7,0.16835151]
[1673371845646,41.7150304,1330.8,1330.7,0.16835151]
[1673371845854,42.2787304,1330.8,1330.7,0.16835151]
[1673371846871,44.52994511,1330.8,1330.7,0.16835151]
[1673371849534,42.2787304,1330.8,1330.7,0.16835151]
[1673371849687,44.52991365,1330.8,1330.7,0.16835151]
[1673371850646,41.71596078,1330.8,1330.7,0.16835151]
[1673371850873,26.68742078,1330.8,1330.7,0.16835151]
[1673371851582,17.47415078,1330.8,1330.7,0.16835151]
[1673371851956,24.98842078,1330.8,1330.7,0.16835151]
[1673371852110,24.42472078,1330.8,1330.7,0.16835151]
[1673371852531,27.23867365,1330.8,1330.7,0.16835151]
[1673371852766,24.42472078,1330.8,1330.7,0.16835151]
[1673371853291,27.23867365,1330.8,1330.7,0.16835151]
[1673371853514,34.75294365,1330.8,1330.7,0.16835151]
[1673371854750,42.26721365,1330.8,1330.7,0.16835151]
[1673371854981,39.45326078,1330.8,1330.7,0.16835151]
[1673371855303,42.26721365,1330.8,1330.7,0.16835151]
[1673371855688,34.75294365,1330.8,1330.7,0.16835151]
[1673371856480,42.26721365,1330.8,1330.7,0.16835151]
[1673371856700,34.75294365,1330.8,1330.7,0.16835151]
[1673371859562,27.23867365,1330.8,1330.7,0.16835151]
[1673371859785,28.93367365,1330.8,1330.7,0.16835151]
[1673371860000,53.77874578,1330.8,1330.7,0.16835151]
[1673371860209,53.78474578,1330.8,1330.7,0.16835151]
[1673371860418,53.78474578,1330.8,1330.6,0.73952832]
[1673371860419,2.5,1330.7,1330.6,0.73952832]
[1673371860671,41.39299937,1330.7,1330.6,0.73952832]
[1673371861049,41.39299937,1330.7,1330.6,8.32e-06]
[1673371861262,52.27968861,1330.7,1330.5,0.11463243]
[1673371861521,36.52470988,1330.6,1330.5,0.11463243]
[1673371861735,39.52470988,1330.6,1330.5,0.11463243]
[1673371861878,44.51443578,1330.6,1330.5,0.11463243]
[1673371862550,43.95696737,1330.6,1330.5,0.11463243]
[1673371862930,46.2067032,1330.6,1330.5,0.11463243]
[1673371863593,46.2067121,1330.6,1330.5,0.11463243]
[1673371863805,34.94156737,1330.6,1330.5,0.11463243]
[1673371864027,19.70935796,1330.6,1330.5,0.11463243]
[1673371864187,16.89497713,1330.6,1330.5,0.11463243]
[1673371864657,24.18037713,1330.6,1330.5,0.11463243]
[1673371864984,11.5249096,1330.7,1330.5,1.16663243]
[1673371865201,3.9457096,1330.7,1330.5,1.16663243]
[1673371865346,3.9437096,1330.7,1330.5,0.11463243]
[1673371865556,18.9734396,1330.7,1330.5,0.11463243]
[1673371865764,11.4585496,1330.7,1330.5,0.11463243]
[1673371866025,3.9437096,1330.7,1330.5,0.11463243]
[1673371866402,11.4585896,1330.7,1330.5,0.11463243]
[1673371866608,3.9437096,1330.7,1330.5,0.11463243]
[1673371866816,3.9437096,1330.7,1330.5,7.63059243]
[1673371867063,3.9437096,1330.7,1330.5,16.62016083]
[1673371867064,1.694,1330.7,1330.5,16.62016083]
[1673371867292,1.694,1330.7,1330.5,9.10419083]
[1673371867505,40.0266096,1330.8,1330.5,1.58823083]
[1673371867660,47.4751996,1330.8,1330.5,1.48923083]
[1673371868232,45.22549,1330.8,1330.5,1.48923083]
[1673371868601,52.74008,1330.8,1330.5,1.48923083]
[1673371869035,54.9897896,1330.8,1330.5,1.48923083]
[1673371873364,54.9897896,1330.8,1330.5,0.11463243]
[1673371873590,57.80417043,1330.8,1330.5,0.11463243]
[1673371874001,7.5154,1330.6,1330.5,0.11463243]
[1673371875028,22.5462,1330.6,1330.5,0.11463243]
[1673371875243,15.0308,1330.6,1330.5,0.11463243]
[1673371875475,7.5154,1330.6,1330.5,0.11463243]
[1673371877018,17.3458196,1330.7,1330.5,0.11463243]
[1673371877343,7.5154,1330.6,1330.5,0.11463243]
[1673371878757,17.3458196,1330.7,1330.5,0.11463243]
[1673371878951,17.2798196,1330.7,1330.5,0.11463243]
[1673371880165,9.7645596,1330.7,1330.5,0.11463243]
[1673371881360,2.2497096,1330.7,1330.5,0.11463243]
[1673371881978,38.89628083,1330.8,1330.5,0.11463243]
[1673371881979,41.14599043,1330.8,1330.5,0.11463243]
[1673371882167,41.07999043,1330.8,1330.5,7.63047243]
[1673371882431,41.07999043,1330.8,1330.5,7.72947243]
[1673371882580,33.56549043,1330.8,1330.5,7.72947243]
[1673371883115,33.56549043,1330.8,1330.5,15.24544243]
[1673371884203,33.56549043,1330.8,1330.5,18.60705559]
[1673371884736,33.56549043,1330.8,1330.5,29.84987211]
[1673371884737,28.5014,1330.8,1330.5,29.84987211]
[1673371884909,0.5638,1330.7,1330.5,32.64740018]
[1673371885101,28.5014,1330.8,1330.5,28.92055366]
[1673371885102,28.5674,1330.8,1330.5,28.92055366]
[1673371885309,28.5014,1330.8,1330.5,32.63443638]
[1673371885518,28.5014,1330.8,1330.5,28.92055366]
[1673371886799,10.0,1330.8,1330.7,1.349]
[1673371887058,8.13009043,1330.9,1330.7,1.6193]
[1673371887059,3.6128,1330.9,1330.7,1.6193]
[1673371887370,3.6128,1330.9,1330.8,8.86827]
[1673371887371,3.5468,1330.9,1330.8,8.86827]
[1673371887582,3.5468,1330.9,1330.8,8.96727]
[1673371888157,3.0,1330.9,1330.8,18.908211]
[1673371888850,2.8625096,1331.0,1330.8,18.908211]
[1673371889056,2.7965096,1331.0,1330.8,18.908211]
[1673371889413,0.5468,1331.0,1330.8,26.422481]
[1673371889624,3.5468,1331.0,1330.8,26.422481]
[1673371891148,5.7965096,1331.0,1330.8,18.908211]
[1673371892147,3.5468,1331.0,1330.8,18.908211]
[1673371892360,3.5468,1331.0,1330.8,26.422481]
[1673371892361,3.0,1331.0,1330.8,26.422481]
[1673371896665,3.0,1331.0,1330.8,18.908211]
[1673371896921,3.0,1331.0,1330.8,26.422481]
[1673371897138,3.0,1331.0,1330.8,0.099]
[1673371897328,4.0,1331.0,1330.7,7.61329]
[1673371897546,4.0,1331.0,1330.7,0.099]
[1673371897547,7.6037096,1331.0,1330.7,0.099]
[1673371897712,9.9936096,1330.9,1330.6,7.6775]
[1673371897922,3.0,1330.8,1330.6,7.6775]
[1673371898186,19.38327,1330.8,1330.6,0.099]
[1673371898400,19.38327,1330.8,1330.5,9.96963243]
[1673371899050,26.89807,1330.8,1330.5,0.21363243]
[1673371899348,23.89917,1330.7,1330.5,0.11463243]
[1673371899519,1.354,1330.6,1330.5,0.11463243]
[1673371900080,16.3848,1330.6,1330.5,0.11463243]
[1673371900444,19.3848,1330.6,1330.5,0.11463243]
[1673371900658,19.32100758,1330.6,1330.5,0.11463243]
[1673371901235,11.80560758,1330.6,1330.5,0.11463243]
[1673371901398,4.29020758,1330.6,1330.5,0.11463243]
[1673371902747,14.30560758,1330.6,1330.5,0.11463243]
[1673371902865,11.80560758,1330.6,1330.5,0.11463243]
[1673371903076,19.32100758,1330.6,1330.5,0.11463243]
[1673371903285,11.80560758,1330.6,1330.5,0.11463243]
[1673371904121,26.83640758,1330.6,1330.5,0.11463243]
[1673371904387,19.32100758,1330.6,1330.5,0.11463243]
[1673371905407,27.06640758,1330.6,1330.5,0.11463243]
[1673371906384,19.55100758,1330.6,1330.5,0.11463243]
[1673371907327,27.06640758,1330.6,1330.5,0.11463243]
[1673371908697,19.55100758,1330.6,1330.5,0.11463243]
[1673371909289,19.55100758,1330.6,1330.5,0.11175309]
[1673371909503,27.06640758,1330.6,1330.5,0.11175309]
[1673371911191,19.55100758,1330.6,1330.5,0.11175309]
[1673371911397,4.52020758,1330.6,1330.5,0.11175309]
[1673371911716,12.03560758,1330.6,1330.5,0.11175309]
[1673371912566,19.55100758,1330.6,1330.5,0.11175309]
[1673371913428,12.03560758,1330.6,1330.5,0.11175309]
[1673371915944,19.55100758,1330.6,1330.5,0.11175309]
[1673371916364,27.06640758,1330.6,1330.5,0.11175309]
[1673371917440,19.55100758,1330.6,1330.5,0.11175309]
[1673371918346,19.55100758,1330.6,1330.3,7.28475537]
[1673371918910,12.03560758,1330.6,1330.3,7.28475537]
[1673371920450,19.55100758,1330.6,1330.3,7.28475537]
[1673371922562,27.06640758,1330.6,1330.3,7.28475537]
[1673371922771,19.55100758,1330.6,1330.3,7.28475537]
[1673371923206,3.23,1330.6,1330.3,7.28275537]
[1673371923447,3.23,1330.6,1330.3,14.79979537]
[1673371925753,3.23,1330.6,1330.3,29.83399537]
[1673371926595,3.23,1330.6,1330.3,22.31689537]
[1673371926750,3.23,1330.6,1330.3,25.64886708]
[1673371927634,3.23,1330.6,1330.3,29.35102916]
[1673371928020,3.23,1330.6,1330.3,33.16596708]
[1673371928270,3.23,1330.6,1330.3,25.64886708]
[1673371928641,3.23,1330.6,1330.3,33.16596708]
[1673371928897,3.23,1330.6,1330.3,25.64886708]
[1673371929109,3.23,1330.6,1330.3,33.16596708]
[1673371929288,3.23,1330.6,1330.3,25.64886708]
[1673371929499,3.23,1330.6,1330.3,33.16596708]
[1673371929856,18.2637,1330.7,1330.6,1.11900062]
[1673371930075,11.3353,1330.7,1330.6,1.11900062]
[1673371930760,3.23,1330.7,1330.6,1.11900062]
[1673371930950,0.23,1330.7,1330.6,1.11900062]
[1673371938475,1.346,1330.7,1330.6,1.11900062]
[1673371938893,3.5957096,1330.7,1330.6,1.11900062]
[1673371939098,6.04505104,1330.7,1330.6,1.11900062]
[1673371939314,8.29476064,1330.7,1330.6,1.11900062]
[1673371940172,6.04505104,1330.7,1330.6,1.11900062]
[1673371940574,8.29476064,1330.7,1330.6,1.11900062]
[1673371941029,15.80960064,1330.7,1330.6,1.11900062]
[1673371942413,7.17876064,1330.7,1330.6,1.11900062]
[1673371944268,5.4797096,1330.7,1330.6,1.11900062]
[1673371944926,3.23,1330.7,1330.6,1.11900062]
[1673371945878,5.4797096,1330.7,1330.6,1.11900062]
[1673371946464,3.0,1330.7,1330.6,1.11900062]
[1673371947036,3.0,1330.7,1330.6,1.1157673]
[1673371947927,3.0,1330.7,1330.5,3.7306473]
[1673371948136,3.0,1330.7,1330.5,5.95603348]
[1673371948349,3.0,1330.7,1330.5,6.05503348]
[1673371948601,3.0,1330.7,1330.5,2.42338618]
[1673371948820,3.0,1330.7,1330.5,2.32438618]
[1673371952718,18.02974,1330.7,1330.5,2.32438618]
[1673371952871,18.02974,1330.7,1330.4,0.6629]
[1673371952872,20.2794496,1330.7,1330.4,0.6629]
[1673371953233,12.7645496,1330.7,1330.4,0.5639]
[1673371953658,12.7645496,1330.7,1330.3,46.89844917]
[1673371953866,12.7645496,1330.7,1330.4,4.66245779]
[1673371954039,12.7645496,1330.7,1330.4,12.41030502]
[1673371954399,12.7645496,1330.7,1330.4,8.14428879]
[1673371954549,0.083,1330.5,1330.4,8.14428879]
[1673371954759,12.8305496,1330.7,1330.4,10.00932294]
[1673371955021,12.7645496,1330.7,1330.4,8.14428879]
[1673371955338,6.7497096,1330.7,1330.4,15.66073879]
[1673371955493,6.7497096,1330.7,1330.4,8.14428879]
[1673371955710,14.2647796,1330.7,1330.4,0.099]
[1673371955923,12.7647796,1330.7,1330.3,37.69284983]
[1673371956292,12.7647796,1330.7,1330.4,1.86505122]
[1673371957451,15.57916043,1330.7,1330.4,1.86505122]
[1673371959096,15.57916043,1330.7,1330.4,4.66268879]
[1673371959353,15.57916043,1330.7,1330.4,3.72938871]
[1673371963498,15.57916043,1330.7,1330.5,0.16591229]
[1673371964388,15.58116043,1330.7,1330.5,0.16591229]
[1673371964604,15.57916043,1330.7,1330.5,0.16591229]
[1673371965199,16.57916043,1330.7,1330.5,0.16591229]
[1673371965414,16.57673479,1330.7,1330.5,0.16591229]
[1673371998489,20.2006834,1330.2,1330.1,0.09553651]
[1673371998854,12.6830234,1330.2,1330.1,0.09553651]
[1673372000246,12.68100646,1330.2,1330.1,0.09553651]